[Event "Early-Titled-Tuesday-Blitz-July-09-2024"]
[Site "Chess.com"]
[Date "2024.07.09"]
[Round "9"]
[White "PapaieDudu"]
[Black "kadirsoria"]
[Result "1-0"]
[WhiteElo "2400"]
[BlackElo "2227"]
[TimeControl "180+1"]
[EndTime "9:45:23 PDT"]
[Termination "PapaieDudu won on time"]

1. Nf3 {[%clk 0:03:00.9]} 1... Nf6 {[%clk 0:02:58]} 2. d4 {[%clk 0:03:01.1]}
2... g6 {[%clk 0:02:57.3]} 3. c4 {[%clk 0:03:01.4]} 3... Bg7 {[%clk 0:02:57.3]}
4. Nc3 {[%clk 0:03:01.9]} 4... O-O {[%clk 0:02:57.5]} 5. Bf4 {[%clk 0:03:01.3]}
5... d6 {[%clk 0:02:57.3]} 6. e3 {[%clk 0:03:00.7]} 6... Nc6 {[%clk 0:02:57.5]}
7. d5 {[%clk 0:02:59.3]} 7... e5 {[%clk 0:02:43.9]} 8. Bg5 {[%clk 0:02:58.9]}
8... Ne7 {[%clk 0:02:39.4]} 9. Be2 {[%clk 0:02:57.2]} 9... h6 {[%clk 0:02:37.3]}
10. Bh4 {[%clk 0:02:57.7]} 10... Nf5 {[%clk 0:02:37]} 11. Bg3 {[%clk 0:02:57.1]}
11... h5 {[%clk 0:02:26.1]} 12. O-O {[%clk 0:02:53.6]} 12... Nh7 {[%clk
0:02:12.8]} 13. e4 {[%clk 0:02:49.3]} 13... Nxg3 {[%clk 0:02:09.9]} 14. fxg3
{[%clk 0:02:49.1]} 14... Bh6 {[%clk 0:02:06.2]} 15. Kh1 {[%clk 0:02:46.6]} 15...
a5 {[%clk 0:01:40.3]} 16. b3 {[%clk 0:02:42.4]} 16... b6 {[%clk 0:01:32.8]} 17.
a3 {[%clk 0:02:42.3]} 17... Ng5 {[%clk 0:01:11.2]} 18. b4 {[%clk 0:02:39.8]}
18... Nxf3 {[%clk 0:00:59.8]} 19. gxf3 {[%clk 0:02:35.9]} 19... Be3 {[%clk
0:00:57.9]} 20. g4 {[%clk 0:02:20.9]} 20... Bd4 {[%clk 0:00:55.6]} 21. Rc1
{[%clk 0:02:18.4]} 21... axb4 {[%clk 0:00:55.4]} 22. axb4 {[%clk 0:02:18.8]}
22... hxg4 {[%clk 0:00:52.5]} 23. fxg4 {[%clk 0:02:19]} 23... Be3 {[%clk
0:00:31.2]} 24. Rc2 {[%clk 0:02:16.3]} 24... Bf4 {[%clk 0:00:29.8]} 25. Bf3
{[%clk 0:02:08.4]} 25... Bd7 {[%clk 0:00:24.9]} 26. Qd3 {[%clk 0:02:01.2]} 26...
Qh4 {[%clk 0:00:19.9]} 27. Rg1 {[%clk 0:01:56]} 27... Ra3 {[%clk 0:00:17.2]} 28.
c5 {[%clk 0:01:44.8]} 28... bxc5 {[%clk 0:00:16]} 29. bxc5 {[%clk 0:01:45]}
29... Bb5 {[%clk 0:00:11.2]} 30. Qxb5 {[%clk 0:01:34.5]} 30... Rxc3 {[%clk
0:00:10.9]} 31. Qe2 {[%clk 0:01:32.2]} 31... Rxc5 {[%clk 0:00:07.2]} 32. Rxc5
{[%clk 0:01:13.5]} 32... dxc5 {[%clk 0:00:08.1]} 33. Rg2 {[%clk 0:01:11]} 33...
Rb8 {[%clk 0:00:06.7]} 34. Qd1 {[%clk 0:01:03.7]} 34... Rb4 {[%clk 0:00:04.3]}
35. Kg1 {[%clk 0:01:00.2]} 35... Be3+ {[%clk 0:00:03.3]} 36. Kf1 {[%clk
0:00:57.9]} 36... c4 {[%clk 0:00:04.2]} 37. Qe1 {[%clk 0:00:55.4]} 37... Bc5
{[%clk 0:00:03.5]} 38. Qxh4 {[%clk 0:00:54.1]} 38... Rb1+ {[%clk 0:00:02.8]} 39.
Ke2 {[%clk 0:00:53.5]} 39... Rb2+ {[%clk 0:00:02.1]} 40. Kd1 {[%clk 0:00:53.1]}
1-0

[Event "Early-Titled-Tuesday-Blitz-July-09-2024"]
[Site "Chess.com"]
[Date "2024.07.09"]
[Round "9"]
[White "BeanScreen"]
[Black "Vaathi_Coming"]
[Result "0-1"]
[WhiteElo "2705"]
[BlackElo "2918"]
[TimeControl "180+1"]
[EndTime "9:45:25 PDT"]
[Termination "Vaathi_Coming won by resignation"]

1. e4 {[%clk 0:03:00.9]} 1... e5 {[%clk 0:02:59]} 2. Nf3 {[%clk 0:03:00.3]} 2...
Nc6 {[%clk 0:02:59.6]} 3. Bc4 {[%clk 0:03:00.9]} 3... Bc5 {[%clk 0:02:56]} 4. c3
{[%clk 0:03:01.2]} 4... d6 {[%clk 0:02:54.7]} 5. d4 {[%clk 0:03:00.9]} 5... exd4
{[%clk 0:02:54.3]} 6. cxd4 {[%clk 0:03:00.8]} 6... Bb4+ {[%clk 0:02:54.4]} 7.
Nc3 {[%clk 0:03:00.3]} 7... Nf6 {[%clk 0:02:52.7]} 8. d5 {[%clk 0:03:00.3]} 8...
Bxc3+ {[%clk 0:02:52]} 9. bxc3 {[%clk 0:03:01.2]} 9... Ne7 {[%clk 0:02:52.8]}
10. Bd3 {[%clk 0:03:00.1]} 10... Ng6 {[%clk 0:02:52.5]} 11. O-O {[%clk
0:02:59.6]} 11... O-O {[%clk 0:02:52]} 12. h3 {[%clk 0:02:50.1]} 12... Re8
{[%clk 0:02:52.1]} 13. Re1 {[%clk 0:02:49.8]} 13... c6 {[%clk 0:02:45.7]} 14. c4
{[%clk 0:02:47.7]} 14... Nd7 {[%clk 0:02:46]} 15. Ba3 {[%clk 0:02:41.8]} 15...
c5 {[%clk 0:02:42.5]} 16. Qd2 {[%clk 0:02:36.1]} 16... b6 {[%clk 0:02:41.3]} 17.
Bb2 {[%clk 0:02:23]} 17... Nde5 {[%clk 0:02:40]} 18. Nxe5 {[%clk 0:02:21.3]}
18... dxe5 {[%clk 0:02:40.9]} 19. Bf1 {[%clk 0:02:14.7]} 19... Qd6 {[%clk
0:02:34.5]} 20. g3 {[%clk 0:02:09.5]} 20... f5 {[%clk 0:02:34.4]} 21. exf5
{[%clk 0:02:01.8]} 21... Bxf5 {[%clk 0:02:35.3]} 22. Bd3 {[%clk 0:01:51.5]}
22... e4 {[%clk 0:02:22.9]} 23. Bf1 {[%clk 0:01:51.3]} 23... Ne5 {[%clk
0:02:19.5]} 24. Bxe5 {[%clk 0:01:48.9]} 24... Rxe5 {[%clk 0:02:20.4]} 25. Qf4
{[%clk 0:01:46.1]} 25... Rf8 {[%clk 0:02:18.8]} 26. Qe3 {[%clk 0:01:20.2]} 26...
Bg6 {[%clk 0:02:03.1]} 27. f4 {[%clk 0:01:14.1]} 27... exf3 {[%clk 0:02:04]} 28.
Qxe5 {[%clk 0:01:08.5]} 28... f2+ {[%clk 0:02:02.9]} 29. Kg2 {[%clk 0:01:05.7]}
29... fxe1=N+ {[%clk 0:02:01.8]} 30. Rxe1 {[%clk 0:01:03.9]} 30... Qd8 {[%clk
0:02:00.9]} 31. Qe7 {[%clk 0:01:01.6]} 31... Qc8 {[%clk 0:01:44]} 32. d6 {[%clk
0:00:31.8]} 32... Re8 {[%clk 0:01:10.2]} 33. Qc7 {[%clk 0:00:17]} 33... Qa8+
{[%clk 0:01:08.8]} 34. Kf2 {[%clk 0:00:16.8]} 34... Rf8+ {[%clk 0:01:05.2]} 35.
Kg1 {[%clk 0:00:14.2]} 35... Qf3 {[%clk 0:01:05.3]} 36. Bg2 {[%clk 0:00:09]}
36... Qf2+ {[%clk 0:00:57.4]} 37. Kh2 {[%clk 0:00:09.4]} 37... Qxe1 {[%clk
0:00:58.3]} 38. d7 {[%clk 0:00:09.7]} 38... Qe7 {[%clk 0:00:56]} 39. Bd5+ {[%clk
0:00:08.2]} 39... Kh8 {[%clk 0:00:56]} 40. Qc8 {[%clk 0:00:08.4]} 40... Bf5
{[%clk 0:00:50.6]} 41. d8=Q {[%clk 0:00:02.1]} 41... Qxd8 {[%clk 0:00:47.9]} 42.
Qc6 {[%clk 0:00:02.4]} 42... Qe7 {[%clk 0:00:45.9]} 43. Kg2 {[%clk 0:00:02.1]}
43... Qe2+ {[%clk 0:00:44.9]} 0-1

[Event "Early-Titled-Tuesday-Blitz-July-09-2024"]
[Site "Chess.com"]
[Date "2024.07.09"]
[Round "9"]
[White "ilqar_74"]
[Black "BashirovKemal"]
[Result "1-0"]
[WhiteElo "2884"]
[BlackElo "2676"]
[TimeControl "180+1"]
[EndTime "9:45:26 PDT"]
[Termination "ilqar_74 won by resignation"]

1. e4 {[%clk 0:03:00.9]} 1... e5 {[%clk 0:02:59.8]} 2. Nf3 {[%clk 0:02:58.8]}
2... Nf6 {[%clk 0:03:00.2]} 3. Nxe5 {[%clk 0:02:56.3]} 3... d6 {[%clk
0:03:00.7]} 4. Nf3 {[%clk 0:02:54.9]} 4... Nxe4 {[%clk 0:03:01.1]} 5. d4 {[%clk
0:02:53.8]} 5... d5 {[%clk 0:03:01.2]} 6. Bd3 {[%clk 0:02:54.2]} 6... Bd6 {[%clk
0:03:01.8]} 7. O-O {[%clk 0:02:54.3]} 7... O-O {[%clk 0:03:02.2]} 8. c4 {[%clk
0:02:54.7]} 8... c6 {[%clk 0:03:02.3]} 9. Qc2 {[%clk 0:02:55.3]} 9... Bf5 {[%clk
0:02:59.7]} 10. Nc3 {[%clk 0:02:54.9]} 10... Re8 {[%clk 0:02:38.4]} 11. Re1
{[%clk 0:02:53.3]} 11... Bb4 {[%clk 0:02:21]} 12. a3 {[%clk 0:02:40.6]} 12...
Bxc3 {[%clk 0:02:19.4]} 13. bxc3 {[%clk 0:02:40.6]} 13... Nd7 {[%clk 0:02:20]}
14. Bf4 {[%clk 0:02:37]} 14... Ndf6 {[%clk 0:02:13.7]} 15. Nh4 {[%clk
0:02:32.9]} 15... Be6 {[%clk 0:01:51.6]} 16. Nf3 {[%clk 0:02:20]} 16... Bf5
{[%clk 0:01:44.7]} 17. c5 {[%clk 0:02:16]} 17... Nh5 {[%clk 0:01:34.6]} 18. Be3
{[%clk 0:02:13.4]} 18... Bg4 {[%clk 0:01:29.1]} 19. Ne5 {[%clk 0:02:11.7]} 19...
Be6 {[%clk 0:00:57.3]} 20. f3 {[%clk 0:02:08.1]} 20... f6 {[%clk 0:00:47.6]} 21.
Ng4 {[%clk 0:01:28.4]} 21... f5 {[%clk 0:00:40.5]} 22. Ne5 {[%clk 0:01:22.2]}
22... Nef6 {[%clk 0:00:39.8]} 23. Bxf5 {[%clk 0:01:19.4]} 23... Bxf5 {[%clk
0:00:39.3]} 24. Qxf5 {[%clk 0:01:20.2]} 24... g6 {[%clk 0:00:39.8]} 25. Qd3
{[%clk 0:01:05.7]} 25... Qc7 {[%clk 0:00:37.5]} 26. Bg5 {[%clk 0:01:02.6]} 26...
Re6 {[%clk 0:00:37]} 27. Ng4 {[%clk 0:00:47.8]} 27... Nxg4 {[%clk 0:00:33.2]}
28. fxg4 {[%clk 0:00:46.8]} 28... Nf4 {[%clk 0:00:32.8]} 29. Bxf4 {[%clk
0:00:37.4]} 29... Rxe1+ {[%clk 0:00:32]} 30. Rxe1 {[%clk 0:00:38.3]} 30... Qxf4
{[%clk 0:00:32.5]} 31. Qf3 {[%clk 0:00:38.3]} 31... Qxf3 {[%clk 0:00:25.6]} 32.
gxf3 {[%clk 0:00:38.5]} 32... Kf7 {[%clk 0:00:26.3]} 33. Rb1 {[%clk 0:00:37.3]}
33... Rb8 {[%clk 0:00:25.5]} 34. Kf2 {[%clk 0:00:37.8]} 34... b5 {[%clk
0:00:23]} 35. a4 {[%clk 0:00:36.4]} 35... a6 {[%clk 0:00:22.4]} 36. axb5 {[%clk
0:00:35.2]} 36... axb5 {[%clk 0:00:23.3]} 37. Ra1 {[%clk 0:00:35.1]} 37... Rb7
{[%clk 0:00:22.1]} 38. Ra6 {[%clk 0:00:34.8]} 38... Rc7 {[%clk 0:00:22.4]} 39.
Ke3 {[%clk 0:00:34.8]} 39... g5 {[%clk 0:00:21.5]} 40. f4 {[%clk 0:00:33.9]}
40... gxf4+ {[%clk 0:00:19.5]} 41. Kxf4 {[%clk 0:00:34.1]} 41... Kf6 {[%clk
0:00:20.1]} 42. h4 {[%clk 0:00:34.7]} 42... h6 {[%clk 0:00:20]} 43. g5+ {[%clk
0:00:34.8]} 43... hxg5+ {[%clk 0:00:20.4]} 44. hxg5+ {[%clk 0:00:35.4]} 44...
Kg6 {[%clk 0:00:20.4]} 45. Ke5 {[%clk 0:00:34]} 45... Kxg5 {[%clk 0:00:20.7]}
46. Kd6 {[%clk 0:00:34.5]} 46... Rb7 {[%clk 0:00:21.1]} 47. Kxc6 {[%clk
0:00:34.1]} 47... Rb8 {[%clk 0:00:20.4]} 48. Rb6 {[%clk 0:00:34.5]} 1-0

[Event "Early-Titled-Tuesday-Blitz-July-09-2024"]
[Site "Chess.com"]
[Date "2024.07.09"]
[Round "9"]
[White "Tol_Tol"]
[Black "CristianS27"]
[Result "0-1"]
[WhiteElo "2352"]
[BlackElo "2497"]
[TimeControl "180+1"]
[EndTime "9:45:26 PDT"]
[Termination "CristianS27 won on time"]

1. d4 {[%clk 0:03:00.9]} 1... Nf6 {[%clk 0:02:57.4]} 2. c4 {[%clk 0:03:00.5]}
2... g6 {[%clk 0:02:54.8]} 3. Nc3 {[%clk 0:02:59.7]} 3... Bg7 {[%clk 0:02:55.7]}
4. e4 {[%clk 0:02:58.5]} 4... d6 {[%clk 0:02:55.6]} 5. f3 {[%clk 0:02:58.6]}
5... O-O {[%clk 0:02:56.5]} 6. Be3 {[%clk 0:02:58.9]} 6... c5 {[%clk 0:02:56.7]}
7. dxc5 {[%clk 0:02:59]} 7... dxc5 {[%clk 0:02:57]} 8. Qxd8 {[%clk 0:02:59.8]}
8... Rxd8 {[%clk 0:02:57.9]} 9. Bxc5 {[%clk 0:03:00.5]} 9... Nc6 {[%clk
0:02:54.9]} 10. Nd5 {[%clk 0:03:00.9]} 10... Nd7 {[%clk 0:02:52]} 11. Bxe7
{[%clk 0:03:00.6]} 11... Nxe7 {[%clk 0:02:48.6]} 12. Nxe7+ {[%clk 0:03:01.5]}
12... Kf8 {[%clk 0:02:49.5]} 13. Nd5 {[%clk 0:03:02.4]} 13... Bxb2 {[%clk
0:02:50]} 14. Rb1 {[%clk 0:03:03.3]} 14... Bg7 {[%clk 0:02:50.6]} 15. Nh3 {[%clk
0:03:02.7]} 15... Nc5 {[%clk 0:02:45.3]} 16. Ng5 {[%clk 0:03:02.2]} 16... h6
{[%clk 0:02:43.3]} 17. Nh7+ {[%clk 0:03:02.2]} 17... Kg8 {[%clk 0:02:36.8]} 18.
Nhf6+ {[%clk 0:03:02.4]} 18... Kf8 {[%clk 0:02:36.3]} 19. h4 {[%clk 0:02:59]}
19... Be6 {[%clk 0:02:22.3]} 20. h5 {[%clk 0:02:47.1]} 20... g5 {[%clk
0:02:21.6]} 21. Nh7+ {[%clk 0:02:31.9]} 21... Kg8 {[%clk 0:02:20.8]} 22. Nhf6+
{[%clk 0:02:32.3]} 22... Kf8 {[%clk 0:02:21.3]} 23. Nh7+ {[%clk 0:02:31.5]}
23... Kg8 {[%clk 0:02:20.8]} 24. Nhf6+ {[%clk 0:02:31.8]} 24... Bxf6 {[%clk
0:02:21.3]} 25. Nxf6+ {[%clk 0:02:31.1]} 25... Kg7 {[%clk 0:02:22.2]} 26. Nd5
{[%clk 0:02:31.3]} 26... Rd6 {[%clk 0:02:21.3]} 27. Be2 {[%clk 0:02:22.8]} 27...
Rc8 {[%clk 0:02:17.1]} 28. O-O {[%clk 0:02:12.8]} 28... Ra6 {[%clk 0:02:17.1]}
29. Rb2 {[%clk 0:02:12]} 29... Ra3 {[%clk 0:02:15.6]} 30. Rd1 {[%clk 0:02:08.2]}
30... Rc6 {[%clk 0:02:13.4]} 31. Ne7 {[%clk 0:01:32.2]} 31... Rca6 {[%clk
0:02:11]} 32. Rdd2 {[%clk 0:01:27.4]} 32... R6a4 {[%clk 0:01:58]} 33. Kh2 {[%clk
0:01:11.3]} 33... g4 {[%clk 0:01:43.5]} 34. e5 {[%clk 0:00:52.6]} 34... gxf3
{[%clk 0:01:41]} 35. Bxf3 {[%clk 0:00:43.8]} 35... Rxc4 {[%clk 0:01:36]} 36. Rd8
{[%clk 0:00:40.5]} 36... Nd3 {[%clk 0:01:20.1]} 37. Rxb7 {[%clk 0:00:25.9]}
37... Nxe5 {[%clk 0:01:20]} 38. Rg8+ {[%clk 0:00:13.2]} 38... Kf6 {[%clk
0:01:07.1]} 39. Nd5+ {[%clk 0:00:11.6]} 39... Bxd5 {[%clk 0:01:07.3]} 40. Bxd5
{[%clk 0:00:12]} 40... Ng4+ {[%clk 0:01:05.6]} 41. Rxg4 {[%clk 0:00:05.3]} 41...
Rxg4 {[%clk 0:01:06.5]} 42. Rxf7+ {[%clk 0:00:03.9]} 42... Ke5 {[%clk 0:01:07]}
43. Bb3 {[%clk 0:00:03.2]} 43... Rh4+ {[%clk 0:01:04.8]} 44. Kg3 {[%clk
0:00:02.8]} 44... Rxh5 {[%clk 0:01:05.7]} 45. Re7+ {[%clk 0:00:01.9]} 45... Kf6
{[%clk 0:01:01.6]} 46. Re6+ {[%clk 0:00:01.6]} 46... Kf5 {[%clk 0:01:02.2]} 47.
Kf3 {[%clk 0:00:01.5]} 47... Rxb3+ {[%clk 0:01:00.1]} 0-1

[Event "Early-Titled-Tuesday-Blitz-July-09-2024"]
[Site "Chess.com"]
[Date "2024.07.09"]
[Round "9"]
[White "ChessFighter_2011"]
[Black "K_A_S_T_O_R"]
[Result "1-0"]
[WhiteElo "2957"]
[BlackElo "2855"]
[TimeControl "180+1"]
[EndTime "9:45:27 PDT"]
[Termination "ChessFighter_2011 won by resignation"]

1. e4 {[%clk 0:03:00.9]} 1... c5 {[%clk 0:02:58.7]} 2. Nf3 {[%clk 0:03:00.7]}
2... d6 {[%clk 0:02:59.1]} 3. d4 {[%clk 0:02:58.8]} 3... cxd4 {[%clk 0:02:59.5]}
4. Nxd4 {[%clk 0:02:59.6]} 4... Nf6 {[%clk 0:02:59.6]} 5. Nc3 {[%clk 0:02:59.8]}
5... a6 {[%clk 0:02:59.7]} 6. Bd3 {[%clk 0:02:58.1]} 6... Nc6 {[%clk 0:02:56.8]}
7. Be3 {[%clk 0:02:55.7]} 7... Ng4 {[%clk 0:02:53.4]} 8. Nxc6 {[%clk 0:02:37.6]}
8... bxc6 {[%clk 0:02:53.1]} 9. Bf4 {[%clk 0:02:38.1]} 9... Qb6 {[%clk
0:02:39.3]} 10. Qd2 {[%clk 0:02:30.6]} 10... Qxb2 {[%clk 0:02:12.3]} 11. O-O
{[%clk 0:02:29.5]} 11... Qb6 {[%clk 0:02:06.9]} 12. Rab1 {[%clk 0:02:20.2]}
12... Qa5 {[%clk 0:01:54.8]} 13. h3 {[%clk 0:01:37.2]} 13... Ne5 {[%clk
0:01:53.7]} 14. Bxe5 {[%clk 0:01:37.3]} 14... dxe5 {[%clk 0:01:46.1]} 15. Rfd1
{[%clk 0:01:23.5]} 15... e6 {[%clk 0:01:33]} 16. Rb3 {[%clk 0:01:16.5]} 16...
Bc5 {[%clk 0:01:25.8]} 17. Qg5 {[%clk 0:00:51.3]} 17... O-O {[%clk 0:01:22.6]}
18. Ne2 {[%clk 0:00:51.1]} 18... h6 {[%clk 0:01:17.2]} 19. Qh5 {[%clk
0:00:38.7]} 19... Qc7 {[%clk 0:01:06.7]} 20. Bc4 {[%clk 0:00:35.5]} 20... Kh7
{[%clk 0:00:59.7]} 21. Rf3 {[%clk 0:00:29]} 21... g6 {[%clk 0:00:58.5]} 22. Qh4
{[%clk 0:00:28.1]} 22... Be7 {[%clk 0:00:50.2]} 23. Qg3 {[%clk 0:00:28.5]} 23...
a5 {[%clk 0:00:48.1]} 24. Rfd3 {[%clk 0:00:26.9]} 24... Rd8 {[%clk 0:00:44.1]}
25. Qf3 {[%clk 0:00:24.4]} 25... Kg7 {[%clk 0:00:42.8]} 26. g3 {[%clk
0:00:22.5]} 26... Rxd3 {[%clk 0:00:40.6]} 27. Qxd3 {[%clk 0:00:22.8]} 27... Rb8
{[%clk 0:00:39.3]} 28. a4 {[%clk 0:00:21.7]} 28... Rb4 {[%clk 0:00:38.3]} 29.
Nc3 {[%clk 0:00:16.6]} 29... Qb6 {[%clk 0:00:34.1]} 30. Bb3 {[%clk 0:00:15.3]}
30... Rd4 {[%clk 0:00:31.2]} 31. Qf3 {[%clk 0:00:15.7]} 31... Rxd1+ {[%clk
0:00:27.6]} 32. Nxd1 {[%clk 0:00:15.9]} 32... Ba6 {[%clk 0:00:27.5]} 33. Ne3
{[%clk 0:00:15.9]} 33... Qd4 {[%clk 0:00:26.2]} 34. Kg2 {[%clk 0:00:14.8]} 34...
h5 {[%clk 0:00:26.4]} 35. h4 {[%clk 0:00:14.9]} 35... Bc5 {[%clk 0:00:25.8]} 36.
Nf1 {[%clk 0:00:13.5]} 36... Qd2 {[%clk 0:00:23.2]} 37. Nxd2 {[%clk 0:00:13.6]}
1-0

[Event "Early-Titled-Tuesday-Blitz-July-09-2024"]
[Site "Chess.com"]
[Date "2024.07.09"]
[Round "9"]
[White "sergeikim"]
[Black "Ordekalog"]
[Result "0-1"]
[WhiteElo "2599"]
[BlackElo "2724"]
[TimeControl "180+1"]
[EndTime "9:45:27 PDT"]
[Termination "Ordekalog won on time"]

1. d4 {[%clk 0:03:00.9]} 1... d5 {[%clk 0:02:58.9]} 2. c4 {[%clk 0:03:00.8]}
2... e6 {[%clk 0:02:58.6]} 3. Nc3 {[%clk 0:03:00.7]} 3... c5 {[%clk 0:02:58.1]}
4. e3 {[%clk 0:03:00.4]} 4... Nf6 {[%clk 0:02:57.6]} 5. Nf3 {[%clk 0:03:00.4]}
5... Nc6 {[%clk 0:02:57.3]} 6. a3 {[%clk 0:03:00.4]} 6... a6 {[%clk 0:02:57]} 7.
Bd3 {[%clk 0:02:56.5]} 7... dxc4 {[%clk 0:02:56.2]} 8. Bxc4 {[%clk 0:02:56.7]}
8... b5 {[%clk 0:02:56.3]} 9. Ba2 {[%clk 0:02:56.7]} 9... Bb7 {[%clk 0:02:56.1]}
10. O-O {[%clk 0:02:56.7]} 10... Qc7 {[%clk 0:02:55.8]} 11. Qe2 {[%clk
0:02:56.2]} 11... cxd4 {[%clk 0:02:52.5]} 12. exd4 {[%clk 0:02:55.7]} 12... Ne7
{[%clk 0:02:52.1]} 13. Bg5 {[%clk 0:02:46.6]} 13... Rd8 {[%clk 0:02:40.6]} 14.
Ne5 {[%clk 0:02:25.4]} 14... Ned5 {[%clk 0:02:36.3]} 15. Rac1 {[%clk 0:02:15]}
15... Nxc3 {[%clk 0:02:25.3]} 16. Rxc3 {[%clk 0:02:14.3]} 16... Qd6 {[%clk
0:02:24.8]} 17. Rfc1 {[%clk 0:01:49]} 17... Be7 {[%clk 0:02:17.3]} 18. Rc7
{[%clk 0:01:35.4]} 18... Ba8 {[%clk 0:02:02.1]} 19. Bxf6 {[%clk 0:01:22.6]}
19... gxf6 {[%clk 0:02:00.7]} 20. Ng4 {[%clk 0:00:33.7]} 20... Qxd4 {[%clk
0:01:56.2]} 21. h3 {[%clk 0:00:29.7]} 21... h5 {[%clk 0:01:40.9]} 22. Bxe6
{[%clk 0:00:24.2]} 22... Qe4 {[%clk 0:01:21.4]} 23. Qxe4 {[%clk 0:00:13.9]}
23... Bxe4 {[%clk 0:01:22.3]} 24. Ne3 {[%clk 0:00:04.8]} 24... fxe6 {[%clk
0:01:21.7]} 25. f3 {[%clk 0:00:05.4]} 25... Ba8 {[%clk 0:01:20.9]} 26. Ra7
{[%clk 0:00:04.7]} 26... Kf7 {[%clk 0:01:06.2]} 27. Rcc7 {[%clk 0:00:03.7]}
27... Rhe8 {[%clk 0:01:06]} 28. f4 {[%clk 0:00:01.8]} 28... Kf8 {[%clk
0:01:01.9]} 29. f5 {[%clk 0:00:01.2]} 29... e5 {[%clk 0:00:58.1]} 30. g4 {[%clk
0:00:01.2]} 30... Rc8 {[%clk 0:00:51.7]} 31. gxh5 {[%clk 0:00:01.4]} 31... Rxc7
{[%clk 0:00:51.7]} 32. Rxc7 {[%clk 0:00:01.9]} 32... Kg7 {[%clk 0:00:48.2]} 33.
Ng4 {[%clk 0:00:01.3]} 33... Be4 {[%clk 0:00:47.2]} 34. h6+ {[%clk 0:00:02.2]}
34... Kf7 {[%clk 0:00:46.7]} 35. h7 {[%clk 0:00:01.8]} 35... Rh8 {[%clk
0:00:39.7]} 36. Nh6+ {[%clk 0:00:01.6]} 36... Kg7 {[%clk 0:00:39.2]} 37. Ng8
{[%clk 0:00:01.2]} 37... Rxh7 {[%clk 0:00:37.8]} 38. Nxe7 {[%clk 0:00:01.5]}
38... Rxh3 {[%clk 0:00:33.7]} 0-1

[Event "Early-Titled-Tuesday-Blitz-July-09-2024"]
[Site "Chess.com"]
[Date "2024.07.09"]
[Round "9"]
[White "LikeWater"]
[Black "el008"]
[Result "0-1"]
[WhiteElo "2688"]
[BlackElo "2562"]
[TimeControl "180+1"]
[EndTime "9:45:29 PDT"]
[Termination "el008 won by resignation"]

1. e4 {[%clk 0:03:00.9]} 1... c5 {[%clk 0:03:00.2]} 2. c3 {[%clk 0:03:01.2]}
2... e6 {[%clk 0:02:59.7]} 3. d4 {[%clk 0:03:01]} 3... Nf6 {[%clk 0:02:59]} 4.
e5 {[%clk 0:02:59.3]} 4... Nd5 {[%clk 0:02:59.1]} 5. c4 {[%clk 0:02:59.5]} 5...
Nb6 {[%clk 0:02:59.2]} 6. d5 {[%clk 0:02:59.8]} 6... d6 {[%clk 0:02:58.4]} 7.
exd6 {[%clk 0:02:55.7]} 7... Bxd6 {[%clk 0:02:57.9]} 8. Nc3 {[%clk 0:02:56]}
8... exd5 {[%clk 0:02:57.6]} 9. cxd5 {[%clk 0:02:55.8]} 9... O-O {[%clk
0:02:57.8]} 10. Nf3 {[%clk 0:02:55.8]} 10... c4 {[%clk 0:02:51.3]} 11. Be2
{[%clk 0:02:55.5]} 11... N8d7 {[%clk 0:02:52]} 12. O-O {[%clk 0:02:55.3]} 12...
Nc5 {[%clk 0:02:52.4]} 13. Nd4 {[%clk 0:02:51.2]} 13... a6 {[%clk 0:02:51.9]}
14. Be3 {[%clk 0:02:42]} 14... Bd7 {[%clk 0:02:47.8]} 15. b4 {[%clk 0:02:35.1]}
15... Nca4 {[%clk 0:02:20.8]} 16. Ne4 {[%clk 0:02:30.5]} 16... Bxb4 {[%clk
0:01:51.1]} 17. Rb1 {[%clk 0:02:23.6]} 17... a5 {[%clk 0:01:41.4]} 18. Nf3
{[%clk 0:02:01.4]} 18... Bf5 {[%clk 0:01:37.6]} 19. Qd4 {[%clk 0:01:14.5]} 19...
Bxe4 {[%clk 0:01:34.5]} 20. Qxe4 {[%clk 0:01:15.4]} 20... Nc3 {[%clk 0:01:34.9]}
21. Qc2 {[%clk 0:01:03.4]} 21... Nxb1 {[%clk 0:01:34]} 22. Ng5 {[%clk
0:00:55.2]} 22... g6 {[%clk 0:01:28.2]} 23. Rxb1 {[%clk 0:00:52.2]} 23... Nxd5
{[%clk 0:01:27.6]} 24. Bc1 {[%clk 0:00:51.9]} 24... Nc3 {[%clk 0:01:19.8]} 25.
Bb2 {[%clk 0:00:52]} 25... Nxe2+ {[%clk 0:01:16.2]} 26. Qxe2 {[%clk 0:00:51]}
26... Qxg5 {[%clk 0:01:17.1]} 27. Qxc4 {[%clk 0:00:47.7]} 27... Rad8 {[%clk
0:01:05.2]} 28. h4 {[%clk 0:00:47.5]} 28... Qd5 {[%clk 0:00:57.6]} 29. Qf4
{[%clk 0:00:47.7]} 29... f5 {[%clk 0:00:57.2]} 30. Qh6 {[%clk 0:00:46.8]} 30...
Qf7 {[%clk 0:00:56.7]} 31. h5 {[%clk 0:00:45.9]} 31... Rfe8 {[%clk 0:00:55.4]}
32. hxg6 {[%clk 0:00:40]} 32... Qxg6 {[%clk 0:00:56.3]} 33. Qh3 {[%clk
0:00:40.5]} 33... Bf8 {[%clk 0:00:53.9]} 34. Ba1 {[%clk 0:00:27.2]} 34... Bg7
{[%clk 0:00:52.8]} 35. Bxg7 {[%clk 0:00:22.5]} 35... Qxg7 {[%clk 0:00:53.7]} 36.
Qxf5 {[%clk 0:00:22.2]} 36... Kh8 {[%clk 0:00:52.4]} 37. Qf3 {[%clk 0:00:21.7]}
37... Rf8 {[%clk 0:00:52.7]} 38. Qe4 {[%clk 0:00:20.9]} 38... Rde8 {[%clk
0:00:52.1]} 39. Qd5 {[%clk 0:00:20.8]} 39... Qf6 {[%clk 0:00:52.2]} 40. f3
{[%clk 0:00:17.5]} 40... b6 {[%clk 0:00:52.8]} 41. Qd3 {[%clk 0:00:14.4]} 41...
Re7 {[%clk 0:00:53.2]} 42. Rb5 {[%clk 0:00:14.2]} 42... Rg7 {[%clk 0:00:53.5]}
43. Rh5 {[%clk 0:00:14.2]} 43... Qa1+ {[%clk 0:00:53.7]} 44. Kh2 {[%clk
0:00:14.3]} 44... Qf6 {[%clk 0:00:54.6]} 45. Rd5 {[%clk 0:00:12.6]} 45... Qf4+
{[%clk 0:00:54.5]} 46. Kh1 {[%clk 0:00:12.6]} 46... Qg3 {[%clk 0:00:55.2]} 47.
Qd2 {[%clk 0:00:12]} 47... Qh4+ {[%clk 0:00:55.5]} 48. Kg1 {[%clk 0:00:12]}
48... Rfg8 {[%clk 0:00:56]} 49. Qb2 {[%clk 0:00:08.5]} 49... Qe1+ {[%clk
0:00:55.2]} 50. Kh2 {[%clk 0:00:08.5]} 50... Qe6 {[%clk 0:00:56.1]} 51. Rh5
{[%clk 0:00:06.2]} 51... Qg6 {[%clk 0:00:54.8]} 52. g4 {[%clk 0:00:06.6]} 52...
h6 {[%clk 0:00:53.3]} 53. Qd2 {[%clk 0:00:06.2]} 53... Kh7 {[%clk 0:00:53.4]}
54. Kg3 {[%clk 0:00:06.7]} 54... Qxh5 {[%clk 0:00:51.8]} 0-1